[Event "*** SCC Grand Prix: Titled Tuesday Blitz"]
[Site "Chess.com"]
[Date "2020.07.07"]
[Round "4"]
[White "olksuna"]
[Black "rynos0411"]
[Result "1-0"]
[WhiteElo "2612"]
[BlackElo "2430"]
[TimeControl "180+1"]
[EndTime "10:40:02 PDT"]
[Termination "olksuna won by resignation"]

1. Nf3 {[%clk 0:03:00.9]} 1... d5 {[%clk 0:02:59.4]} 2. g3 {[%clk 0:03:00.6]}
2... c6 {[%clk 0:02:57]} 3. Bg2 {[%clk 0:03:00.8]} 3... Bf5 {[%clk 0:02:57]} 4.
O-O {[%clk 0:03:00.7]} 4... e6 {[%clk 0:02:57.3]} 5. c4 {[%clk 0:03:01.4]} 5...
Nf6 {[%clk 0:02:56.9]} 6. cxd5 {[%clk 0:03:01.1]} 6... exd5 {[%clk 0:02:54]} 7.
d3 {[%clk 0:03:01]} 7... Be7 {[%clk 0:02:52.7]} 8. Qb3 {[%clk 0:03:00.9]} 8...
Qc8 {[%clk 0:02:51]} 9. Nc3 {[%clk 0:02:55.4]} 9... O-O {[%clk 0:02:49.8]} 10.
Nd4 {[%clk 0:02:51]} 10... Bd7 {[%clk 0:02:46.7]} 11. e4 {[%clk 0:02:50.1]}
11... dxe4 {[%clk 0:02:43.3]} 12. dxe4 {[%clk 0:02:49.9]} 12... Na6 {[%clk
0:02:36.7]} 13. Bf4 {[%clk 0:02:43]} 13... Nc5 {[%clk 0:02:35.8]} 14. Qc2 {[%clk
0:02:43]} 14... Ne6 {[%clk 0:02:33.2]} 15. Nf5 {[%clk 0:02:42.5]} 15... Qe8
{[%clk 0:02:17]} 16. Bd6 {[%clk 0:02:23]} 16... Bxd6 {[%clk 0:02:13.4]} 17. Nxd6
{[%clk 0:02:23.9]} 17... Qe7 {[%clk 0:01:42.2]} 18. Rad1 {[%clk 0:02:20.5]}
18... Rfd8 {[%clk 0:01:36.2]} 19. Nxb7 {[%clk 0:02:18.9]} 19... Rdb8 {[%clk
0:01:29.2]} 20. Nd6 {[%clk 0:02:19]} 20... Rb6 {[%clk 0:01:19]} 21. Rfe1 {[%clk
0:02:15.4]} 21... Rab8 {[%clk 0:01:18.4]} 22. b3 {[%clk 0:02:14.5]} 22... h6
{[%clk 0:01:11.9]} 23. e5 {[%clk 0:02:13]} 23... Ng4 {[%clk 0:01:10.6]} 24. h3
{[%clk 0:02:09.8]} 24... Ng5 {[%clk 0:00:55.6]} 25. hxg4 {[%clk 0:02:04.3]}
25... Bxg4 {[%clk 0:00:55.4]} 26. Rd4 {[%clk 0:01:53.1]} 26... Qe6 {[%clk
0:00:53.1]} 27. Nc4 {[%clk 0:01:38.6]} 27... Rb4 {[%clk 0:00:45.2]} 28. f4
{[%clk 0:01:31.3]} 28... Nf3+ {[%clk 0:00:44.6]} 29. Bxf3 {[%clk 0:01:25.7]}
29... Bxf3 {[%clk 0:00:45.5]} 30. Qd3 {[%clk 0:01:26.1]} 30... Qg4 {[%clk
0:00:43.5]} 31. Kf2 {[%clk 0:01:26.3]} 31... Bd5 {[%clk 0:00:22.5]} 32. Nxd5
{[%clk 0:01:25.5]} 32... cxd5 {[%clk 0:00:23.4]} 33. Rxd5 {[%clk 0:01:26.2]}
33... Qh3 {[%clk 0:00:20.2]} 34. Rd8+ {[%clk 0:01:19.3]} 34... Rxd8 {[%clk
0:00:18.5]} 35. Qxd8+ {[%clk 0:01:20.2]} 35... Kh7 {[%clk 0:00:19.4]} 36. Qd3+
{[%clk 0:01:20.7]} 36... g6 {[%clk 0:00:19.7]} 37. Qd5 {[%clk 0:01:19.5]} 37...
Qh2+ {[%clk 0:00:11.6]} 38. Qg2 {[%clk 0:01:18.9]} 38... Qh5 {[%clk 0:00:11.6]}
39. e6 {[%clk 0:01:14.4]} 39... Qc5+ {[%clk 0:00:07.8]} 40. Kf1 {[%clk
0:01:13.5]} 40... fxe6 {[%clk 0:00:04.9]} 41. Rxe6 {[%clk 0:01:11.3]} 41... h5
{[%clk 0:00:05.2]} 42. Qe2 {[%clk 0:01:07.4]} 42... Qd5 {[%clk 0:00:03.8]} 43.
Re7+ {[%clk 0:01:03.9]} 43... Kh6 {[%clk 0:00:04.1]} 44. Kg1 {[%clk 0:00:44]}
44... Qc5+ {[%clk 0:00:03.5]} 45. Qe3 {[%clk 0:00:40.6]} 45... Qd5 {[%clk
0:00:03.7]} 46. f5+ {[%clk 0:00:38.5]} 46... g5 {[%clk 0:00:04]} 47. Qe6+ {[%clk
0:00:33.9]} 1-0

[Event "*** SCC Grand Prix: Titled Tuesday Blitz"]
[Site "Chess.com"]
[Date "2020.07.07"]
[Round "4"]
[White "ChessSwole"]
[Black "Chessdude1987"]
[Result "1-0"]
[WhiteElo "2417"]
[BlackElo "2221"]
[TimeControl "180+1"]
[EndTime "10:40:02 PDT"]
[Termination "ChessSwole won on time"]

1. b3 {[%clk 0:03:00.9]} 1... e5 {[%clk 0:02:58.7]} 2. Bb2 {[%clk 0:03:01.2]}
2... d6 {[%clk 0:02:58.1]} 3. e3 {[%clk 0:03:01.7]} 3... Nf6 {[%clk 0:02:55.3]}
4. Nf3 {[%clk 0:03:02.1]} 4... g6 {[%clk 0:02:54.2]} 5. d4 {[%clk 0:03:01.7]}
5... e4 {[%clk 0:02:53.7]} 6. Nfd2 {[%clk 0:03:02.2]} 6... Bg7 {[%clk
0:02:53.4]} 7. Be2 {[%clk 0:03:02.1]} 7... O-O {[%clk 0:02:52.4]} 8. O-O {[%clk
0:03:02.7]} 8... Qe7 {[%clk 0:02:50.7]} 9. c4 {[%clk 0:03:02.7]} 9... c5 {[%clk
0:02:50.4]} 10. Nc3 {[%clk 0:02:59]} 10... h5 {[%clk 0:02:43.5]} 11. Qc2 {[%clk
0:02:56]} 11... Bf5 {[%clk 0:02:42.4]} 12. dxc5 {[%clk 0:02:52.6]} 12... dxc5
{[%clk 0:02:41.5]} 13. Rad1 {[%clk 0:02:50]} 13... Nc6 {[%clk 0:02:39.7]} 14. a3
{[%clk 0:02:48.6]} 14... Rad8 {[%clk 0:02:34]} 15. Ndb1 {[%clk 0:02:32]} 15...
Ne5 {[%clk 0:02:28.3]} 16. Nd5 {[%clk 0:02:22.1]} 16... Nxd5 {[%clk 0:02:21]}
17. cxd5 {[%clk 0:02:23]} 17... Nf3+ {[%clk 0:02:13.8]} 18. Bxf3 {[%clk
0:01:25.6]} 18... exf3 {[%clk 0:02:13]} 19. Qc1 {[%clk 0:01:25.5]} 19... Qg5
{[%clk 0:01:24.7]} 20. g3 {[%clk 0:01:21.9]} 20... Bxb2 {[%clk 0:01:22.2]} 21.
Qxb2 {[%clk 0:01:19.8]} 21... Qg4 {[%clk 0:01:19.8]} 22. Kh1 {[%clk 0:01:13.4]}
22... Be4 {[%clk 0:01:11.9]} 23. Nc3 {[%clk 0:01:09.7]} 23... Rfe8 {[%clk
0:01:04.7]} 24. Nxe4 {[%clk 0:01:08.2]} 24... Rxe4 {[%clk 0:01:04.1]} 25. Qf6
{[%clk 0:01:06.7]} 25... Rd7 {[%clk 0:00:53.6]} 26. Rd2 {[%clk 0:00:50.7]} 26...
c4 {[%clk 0:00:51.7]} 27. Rc1 {[%clk 0:00:43]} 27... Qh3 {[%clk 0:00:48.9]} 28.
Qxf3 {[%clk 0:00:42.8]} 28... f5 {[%clk 0:00:42]} 29. bxc4 {[%clk 0:00:38.2]}
29... Rh4 {[%clk 0:00:41]} 30. Qg2 {[%clk 0:00:36.3]} 30... Qxg2+ {[%clk
0:00:39.5]} 31. Kxg2 {[%clk 0:00:37.2]} 31... Re4 {[%clk 0:00:39.8]} 32. c5
{[%clk 0:00:36.4]} 32... Ra4 {[%clk 0:00:38.6]} 33. c6 {[%clk 0:00:33.5]} 33...
bxc6 {[%clk 0:00:37.9]} 34. dxc6 {[%clk 0:00:34.4]} 34... Rc7 {[%clk 0:00:37.9]}
35. Rd7 {[%clk 0:00:33.6]} 35... Rc8 {[%clk 0:00:35.1]} 36. c7 {[%clk
0:00:33.8]} 36... Re4 {[%clk 0:00:33.2]} 37. Rd8+ {[%clk 0:00:33.5]} 37... Re8
{[%clk 0:00:32.9]} 38. Rxe8+ {[%clk 0:00:34]} 38... Rxe8 {[%clk 0:00:32.6]} 39.
c8=Q {[%clk 0:00:34.9]} 39... Rxc8 {[%clk 0:00:32.6]} 40. Rxc8+ {[%clk
0:00:34.6]} 40... Kf7 {[%clk 0:00:32.7]} 41. Rc7+ {[%clk 0:00:35.5]} 41... Ke6
{[%clk 0:00:32.6]} 42. Rxa7 {[%clk 0:00:36.4]} 42... Kd6 {[%clk 0:00:32.8]} 43.
Ra6+ {[%clk 0:00:36.7]} 43... Kd5 {[%clk 0:00:32.3]} 44. Rxg6 {[%clk 0:00:37.6]}
44... Kc4 {[%clk 0:00:32.4]} 45. Rg5 {[%clk 0:00:38.5]} 45... Kb3 {[%clk
0:00:32.3]} 46. Rxf5 {[%clk 0:00:38.6]} 46... Kxa3 {[%clk 0:00:32.4]} 47. Rxh5
{[%clk 0:00:39.2]} 47... Kb4 {[%clk 0:00:32.5]} 48. Rd5 {[%clk 0:00:40]} 1-0

[Event "*** SCC Grand Prix: Titled Tuesday Blitz"]
[Site "Chess.com"]
[Date "2020.07.07"]
[Round "4"]
[White "Th3_Hound"]
[Black "imdarealist"]
[Result "1/2-1/2"]
[WhiteElo "2520"]
[BlackElo "2339"]
[TimeControl "180+1"]
[EndTime "10:40:04 PDT"]
[Termination "Game drawn by repetition"]

1. e4 {[%clk 0:03:00.9]} 1... e5 {[%clk 0:02:59.5]} 2. Nf3 {[%clk 0:03:01.1]}
2... Nf6 {[%clk 0:03:00]} 3. Nxe5 {[%clk 0:03:00.9]} 3... d6 {[%clk 0:03:00.5]}
4. Nf3 {[%clk 0:03:00.8]} 4... Nxe4 {[%clk 0:03:01]} 5. d4 {[%clk 0:03:00.9]}
5... d5 {[%clk 0:03:00.7]} 6. Bd3 {[%clk 0:03:01.4]} 6... Nd6 {[%clk 0:03:01.2]}
7. O-O {[%clk 0:03:01.2]} 7... Be7 {[%clk 0:03:01.7]} 8. Re1 {[%clk 0:03:01.2]}
8... O-O {[%clk 0:03:01.5]} 9. Nc3 {[%clk 0:03:01.4]} 9... c6 {[%clk 0:03:01.3]}
10. Ne2 {[%clk 0:03:01.8]} 10... Bf5 {[%clk 0:02:59.6]} 11. Ng3 {[%clk
0:03:02.3]} 11... Bxd3 {[%clk 0:02:53.1]} 12. Qxd3 {[%clk 0:03:03.2]} 12... Re8
{[%clk 0:02:49.3]} 13. Bf4 {[%clk 0:03:01.2]} 13... Nd7 {[%clk 0:02:47.3]} 14.
Re2 {[%clk 0:02:56.4]} 14... Bf8 {[%clk 0:02:34]} 15. Rae1 {[%clk 0:02:55.2]}
15... Rxe2 {[%clk 0:02:28.8]} 16. Rxe2 {[%clk 0:02:55.1]} 16... Qb6 {[%clk
0:02:29.2]} 17. b3 {[%clk 0:02:36.4]} 17... Nf6 {[%clk 0:02:21.4]} 18. Ne5
{[%clk 0:02:26.3]} 18... Re8 {[%clk 0:02:07.9]} 19. h3 {[%clk 0:02:21.6]} 19...
Nde4 {[%clk 0:01:55.6]} 20. Nd7 {[%clk 0:02:09.2]} 20... Nxd7 {[%clk 0:01:47]}
21. Nxe4 {[%clk 0:02:08.6]} 21... dxe4 {[%clk 0:01:47.4]} 22. Rxe4 {[%clk
0:02:09.5]} 22... Rxe4 {[%clk 0:01:40.9]} 23. Qxe4 {[%clk 0:02:10.4]} 23... Nf6
{[%clk 0:01:33.1]} 24. Qd3 {[%clk 0:02:10.5]} 24... Qd8 {[%clk 0:01:25.9]} 25.
c4 {[%clk 0:02:09.9]} 25... h6 {[%clk 0:01:24.1]} 26. a4 {[%clk 0:02:08.9]}
26... Bd6 {[%clk 0:01:23.5]} 27. Be3 {[%clk 0:02:08.3]} 27... b6 {[%clk
0:01:17.2]} 28. Qf5 {[%clk 0:02:03.9]} 28... Qd7 {[%clk 0:01:11.3]} 29. Qf3
{[%clk 0:02:03.9]} 29... c5 {[%clk 0:01:05.4]} 30. d5 {[%clk 0:02:01.3]} 30...
Qe7 {[%clk 0:01:02.3]} 31. g3 {[%clk 0:01:59.4]} 31... Ne4 {[%clk 0:00:54]} 32.
Qd1 {[%clk 0:01:52.6]} 32... Ng5 {[%clk 0:00:46.5]} 33. h4 {[%clk 0:01:50.3]}
33... Ne4 {[%clk 0:00:43.4]} 34. Qd3 {[%clk 0:01:46.6]} 34... f5 {[%clk
0:00:37.4]} 35. Kg2 {[%clk 0:01:46.3]} 35... Be5 {[%clk 0:00:34.3]} 36. f3
{[%clk 0:01:37]} 36... Nd6 {[%clk 0:00:34.4]} 37. Bd2 {[%clk 0:01:31.1]} 37...
Qf6 {[%clk 0:00:34.3]} 38. a5 {[%clk 0:01:31]} 38... f4 {[%clk 0:00:31.2]} 39.
axb6 {[%clk 0:01:23.3]} 39... axb6 {[%clk 0:00:32.1]} 40. gxf4 {[%clk
0:01:15.8]} 40... Bxf4 {[%clk 0:00:33]} 41. Be1 {[%clk 0:01:16.2]} 41... Nf5
{[%clk 0:00:30.5]} 42. Kh3 {[%clk 0:01:16.6]} 42... Ne3 {[%clk 0:00:24.9]} 43.
Qe4 {[%clk 0:01:06.2]} 43... Qf5+ {[%clk 0:00:22]} 44. Qxf5 {[%clk 0:01:06.8]}
44... Nxf5 {[%clk 0:00:21.3]} 45. Kg4 {[%clk 0:01:07.4]} 45... Ne3+ {[%clk
0:00:17.5]} 46. Kxf4 {[%clk 0:01:07.9]} 46... Ng2+ {[%clk 0:00:18.4]} 47. Ke5
{[%clk 0:01:08.1]} 47... Nxe1 {[%clk 0:00:19.3]} 48. Kd6 {[%clk 0:01:04.9]}
48... Kf8 {[%clk 0:00:14.9]} 49. f4 {[%clk 0:01:02]} 49... Nd3 {[%clk 0:00:14]}
50. f5 {[%clk 0:01:02]} 50... Ke8 {[%clk 0:00:13.2]} 51. Kc7 {[%clk 0:01:02.1]}
51... Ne5 {[%clk 0:00:08]} 52. Kxb6 {[%clk 0:01:02]} 52... Nd7+ {[%clk
0:00:08.4]} 53. Kb5 {[%clk 0:00:59.7]} 53... Ke7 {[%clk 0:00:08.6]} 54. b4
{[%clk 0:00:59.8]} 54... cxb4 {[%clk 0:00:08.5]} 55. Kxb4 {[%clk 0:00:59.1]}
55... Kd6 {[%clk 0:00:08.5]} 56. Kb5 {[%clk 0:00:59]} 56... Nc5 {[%clk 0:00:09]}
57. Kb6 {[%clk 0:00:58.4]} 57... Nd7+ {[%clk 0:00:09.5]} 58. Kb5 {[%clk
0:00:58.7]} 58... Nc5 {[%clk 0:00:10]} 59. Kb6 {[%clk 0:00:58.6]} 59... Nd7+
{[%clk 0:00:10.5]} 60. Kb5 {[%clk 0:00:59.2]} 1/2-1/2

[Event "*** SCC Grand Prix: Titled Tuesday Blitz"]
[Site "Chess.com"]
[Date "2020.07.07"]
[Round "4"]
[White "Michaelson_11"]
[Black "PenguinPacks"]
[Result "0-1"]
[WhiteElo "2096"]
[BlackElo "2359"]
[TimeControl "180+1"]
[EndTime "10:40:05 PDT"]
[Termination "PenguinPacks won by checkmate"]

1. e4 {[%clk 0:03:00.9]} 1... e5 {[%clk 0:02:59]} 2. Nf3 {[%clk 0:03:01.2]} 2...
Nc6 {[%clk 0:02:58.8]} 3. Nc3 {[%clk 0:03:02.1]} 3... Nf6 {[%clk 0:02:57.8]} 4.
Bb5 {[%clk 0:03:02.6]} 4... Nd4 {[%clk 0:02:54]} 5. Bc4 {[%clk 0:02:59.8]} 5...
Bc5 {[%clk 0:02:52.6]} 6. d3 {[%clk 0:02:54.9]} 6... d6 {[%clk 0:02:52.4]} 7.
Bg5 {[%clk 0:02:50.7]} 7... c6 {[%clk 0:02:44.3]} 8. a3 {[%clk 0:02:46]} 8...
Bg4 {[%clk 0:02:42.1]} 9. b4 {[%clk 0:02:37.1]} 9... Bb6 {[%clk 0:02:41.1]} 10.
h3 {[%clk 0:02:36.8]} 10... Bxf3 {[%clk 0:02:35.5]} 11. gxf3 {[%clk 0:02:37.7]}
11... h6 {[%clk 0:02:33.7]} 12. Be3 {[%clk 0:02:35]} 12... d5 {[%clk 0:02:23]}
13. exd5 {[%clk 0:02:31]} 13... cxd5 {[%clk 0:02:23.9]} 14. Bb5+ {[%clk
0:02:31.2]} 14... Nxb5 {[%clk 0:02:22.9]} 15. Nxb5 {[%clk 0:02:29.2]} 15... d4
{[%clk 0:02:11.3]} 16. Bd2 {[%clk 0:02:24.7]} 16... a6 {[%clk 0:02:11.2]} 17.
Qe2 {[%clk 0:02:24.7]} 17... O-O {[%clk 0:02:09.8]} 18. Rg1 {[%clk 0:02:21.7]}
18... Kh7 {[%clk 0:02:07.7]} 19. f4 {[%clk 0:01:54.4]} 19... exf4 {[%clk
0:02:03.1]} 20. Kf1 {[%clk 0:01:54.6]} 20... axb5 {[%clk 0:01:59.5]} 21. Bxf4
{[%clk 0:01:54.9]} 21... Qd5 {[%clk 0:01:57.9]} 22. Rg3 {[%clk 0:01:51.4]} 22...
Rfe8 {[%clk 0:01:43]} 23. Qf3 {[%clk 0:01:46.3]} 23... Qxf3 {[%clk 0:01:41.4]}
24. Rxf3 {[%clk 0:01:47.2]} 24... Rac8 {[%clk 0:01:39.1]} 25. Ra2 {[%clk
0:01:41.2]} 25... Nd5 {[%clk 0:01:35.2]} 26. Bd2 {[%clk 0:01:40.7]} 26... f6
{[%clk 0:01:31.1]} 27. Rf5 {[%clk 0:01:40.8]} 27... Re5 {[%clk 0:01:30.4]} 28.
Rxe5 {[%clk 0:01:39.7]} 28... fxe5 {[%clk 0:01:31.3]} 29. Ke2 {[%clk 0:01:40.1]}
29... Nc3+ {[%clk 0:01:28.5]} 30. Bxc3 {[%clk 0:01:40.4]} 30... Rxc3 {[%clk
0:01:29.4]} 31. Kf3 {[%clk 0:01:41.3]} 31... Bc7 {[%clk 0:01:24.6]} 32. Ke4
{[%clk 0:01:41.4]} 32... Rc6 {[%clk 0:01:23.9]} 33. Kd5 {[%clk 0:01:39.7]} 33...
Rf6 {[%clk 0:01:21.3]} 34. c3 {[%clk 0:01:39.5]} 34... dxc3 {[%clk 0:01:22.2]}
35. Rc2 {[%clk 0:01:39.8]} 35... Rc6 {[%clk 0:01:20.6]} 36. h4 {[%clk
0:01:28.4]} 36... Kg6 {[%clk 0:01:16.5]} 37. f3 {[%clk 0:01:23.8]} 37... Kf5
{[%clk 0:01:14.5]} 38. h5 {[%clk 0:01:20.1]} 38... Bb6 {[%clk 0:01:12.2]} 39. a4
{[%clk 0:01:05.1]} 39... bxa4 {[%clk 0:01:12]} 40. b5 {[%clk 0:01:05.1]} 40...
Rc8 {[%clk 0:01:10.3]} 41. Kd6 {[%clk 0:00:59.7]} 41... Bd4 {[%clk 0:01:04.6]}
42. Ke7 {[%clk 0:00:59.1]} 42... Rc5 {[%clk 0:01:01.3]} 43. Kf7 {[%clk
0:00:58.7]} 43... Rxb5 {[%clk 0:01:01.4]} 44. Rg2 {[%clk 0:00:58.5]} 44... Rb2
{[%clk 0:00:59.5]} 45. Rxg7 {[%clk 0:00:56.7]} 45... c2 {[%clk 0:00:56.6]} 46.
Rg6 {[%clk 0:00:49.9]} 46... c1=Q {[%clk 0:00:54.3]} 47. Rf6+ {[%clk 0:00:46.3]}
47... Kg5 {[%clk 0:00:54.4]} 48. f4+ {[%clk 0:00:46.3]} 48... exf4 {[%clk
0:00:48.4]} 49. Rg6+ {[%clk 0:00:42.8]} 49... Kf5 {[%clk 0:00:47.8]} 50. Kg8
{[%clk 0:00:40.3]} 50... Qc8+ {[%clk 0:00:43.7]} 51. Kf7 {[%clk 0:00:40]} 51...
Qd7+ {[%clk 0:00:43.1]} 52. Kf8 {[%clk 0:00:39.9]} 52... Rc2 {[%clk 0:00:41.2]}
53. Kg8 {[%clk 0:00:16.8]} 53... Rc8# {[%clk 0:00:35.2]} 0-1

[Event "*** SCC Grand Prix: Titled Tuesday Blitz"]
[Site "Chess.com"]
[Date "2020.07.07"]
[Round "4"]
[White "Antipov_Mikhail_Al"]
[Black "S-Fazulyanov"]
[Result "1-0"]
[WhiteElo "2826"]
[BlackElo "2540"]
[TimeControl "180+1"]
[EndTime "10:40:06 PDT"]
[Termination "Antipov_Mikhail_Al won by resignation"]

1. e4 {[%clk 0:03:00.9]} 1... c5 {[%clk 0:02:59.4]} 2. Nf3 {[%clk 0:03:00.6]}
2... Nc6 {[%clk 0:02:59.5]} 3. Bb5 {[%clk 0:02:56.8]} 3... g6 {[%clk 0:02:59]}
4. Bxc6 {[%clk 0:02:56.5]} 4... dxc6 {[%clk 0:02:59.9]} 5. d3 {[%clk 0:02:56.8]}
5... Bg7 {[%clk 0:03:00.2]} 6. h3 {[%clk 0:02:57.3]} 6... e5 {[%clk 0:03:00.2]}
7. Nc3 {[%clk 0:02:52.3]} 7... h6 {[%clk 0:02:50.9]} 8. a4 {[%clk 0:02:51.8]}
8... Be6 {[%clk 0:02:47.7]} 9. a5 {[%clk 0:02:51.5]} 9... Ne7 {[%clk 0:02:43.6]}
10. b3 {[%clk 0:02:49.7]} 10... b6 {[%clk 0:02:41.5]} 11. Bb2 {[%clk 0:02:44.4]}
11... O-O {[%clk 0:02:38.1]} 12. Ne2 {[%clk 0:02:37.7]} 12... Qd6 {[%clk
0:02:35.4]} 13. g4 {[%clk 0:02:36.5]} 13... b5 {[%clk 0:02:24.5]} 14. Qd2 {[%clk
0:02:28.8]} 14... Rad8 {[%clk 0:02:21.3]} 15. Qe3 {[%clk 0:02:14.4]} 15... Rfe8
{[%clk 0:02:17.2]} 16. Ba3 {[%clk 0:02:12.9]} 16... b4 {[%clk 0:02:11.1]} 17.
Bb2 {[%clk 0:02:13]} 17... Kh7 {[%clk 0:02:04.1]} 18. Rg1 {[%clk 0:02:10.2]}
18... Rd7 {[%clk 0:01:49.4]} 19. Nd2 {[%clk 0:02:05.2]} 19... Red8 {[%clk
0:01:46]} 20. Ng3 {[%clk 0:01:44.7]} 20... Bf6 {[%clk 0:01:42.4]} 21. Ngf1
{[%clk 0:01:42.5]} 21... Bg5 {[%clk 0:01:36.3]} 22. Qe2 {[%clk 0:01:41.4]} 22...
Bf4 {[%clk 0:01:30.2]} 23. Ne3 {[%clk 0:01:39.9]} 23... Qc7 {[%clk 0:01:27.6]}
24. h4 {[%clk 0:01:17.1]} 24... Kg8 {[%clk 0:01:23.8]} 25. Kf1 {[%clk
0:01:06.6]} 25... Kh7 {[%clk 0:01:18.8]} 26. Nf3 {[%clk 0:00:59.6]} 26... Kg8
{[%clk 0:01:01.3]} 27. Ng2 {[%clk 0:00:56.7]} 27... Bxg4 {[%clk 0:00:43.7]} 28.
Nxf4 {[%clk 0:00:56.3]} 28... Bxf3 {[%clk 0:00:43.6]} 29. Qxf3 {[%clk
0:00:57.2]} 29... exf4 {[%clk 0:00:44.4]} 30. Rg4 {[%clk 0:00:56.2]} 30... Rf8
{[%clk 0:00:39.9]} 31. Rxf4 {[%clk 0:00:48.3]} 31... f5 {[%clk 0:00:38]} 32. Re1
{[%clk 0:00:29.6]} 32... Qd6 {[%clk 0:00:34.1]} 33. exf5 {[%clk 0:00:20.2]}
33... Rxf5 {[%clk 0:00:33.5]} 34. Rxf5 {[%clk 0:00:20.1]} 34... Nxf5 {[%clk
0:00:30.1]} 35. h5 {[%clk 0:00:17.4]} 35... Re7 {[%clk 0:00:27.8]} 36. Rxe7
{[%clk 0:00:10.8]} 36... Nxe7 {[%clk 0:00:27.6]} 37. Qg4 {[%clk 0:00:08.7]}
37... g5 {[%clk 0:00:21.2]} 38. Qe4 {[%clk 0:00:08.5]} 38... Nd5 {[%clk
0:00:16.9]} 39. Qe8+ {[%clk 0:00:08.5]} 39... Qf8 {[%clk 0:00:15.1]} 40. Qg6+
{[%clk 0:00:08.4]} 1-0

[Event "*** SCC Grand Prix: Titled Tuesday Blitz"]
[Site "Chess.com"]
[Date "2020.07.07"]
[Round "4"]
[White "ace_mar"]
[Black "novocane"]
[Result "1-0"]
[WhiteElo "2440"]
[BlackElo "2263"]
[TimeControl "180+1"]
[EndTime "10:40:06 PDT"]
[Termination "ace_mar won by resignation"]

1. d4 {[%clk 0:03:00.9]} 1... Nf6 {[%clk 0:02:59.4]} 2. c4 {[%clk 0:03:01.2]}
2... e6 {[%clk 0:02:59.7]} 3. g3 {[%clk 0:03:01.7]} 3... d5 {[%clk 0:02:58.3]}
4. Nf3 {[%clk 0:03:02.2]} 4... Be7 {[%clk 0:02:57.1]} 5. Bg2 {[%clk 0:03:01.5]}
5... O-O {[%clk 0:02:55.9]} 6. O-O {[%clk 0:03:02.1]} 6... Nbd7 {[%clk
0:02:53.7]} 7. Qc2 {[%clk 0:03:02.2]} 7... c6 {[%clk 0:02:45.2]} 8. Nbd2 {[%clk
0:03:01.7]} 8... b6 {[%clk 0:02:37.5]} 9. e4 {[%clk 0:03:01.8]} 9... dxe4 {[%clk
0:02:32.5]} 10. Nxe4 {[%clk 0:03:02.7]} 10... Bb7 {[%clk 0:02:27.9]} 11. Rd1
{[%clk 0:02:56.6]} 11... Nxe4 {[%clk 0:02:12.2]} 12. Qxe4 {[%clk 0:02:57.5]}
12... Nf6 {[%clk 0:02:10.2]} 13. Qc2 {[%clk 0:02:56.2]} 13... Qc8 {[%clk
0:02:03.8]} 14. Ne5 {[%clk 0:02:49.2]} 14... c5 {[%clk 0:01:58.9]} 15. d5 {[%clk
0:02:49.3]} 15... exd5 {[%clk 0:01:52.6]} 16. cxd5 {[%clk 0:02:50.2]} 16... Bd6
{[%clk 0:01:42.4]} 17. Nc4 {[%clk 0:02:48]} 17... Ne8 {[%clk 0:01:37.7]} 18. Re1
{[%clk 0:02:40.2]} 18... Qc7 {[%clk 0:01:22.3]} 19. Nxd6 {[%clk 0:02:10.6]}
19... Nxd6 {[%clk 0:01:21.7]} 20. Bf4 {[%clk 0:02:10.4]} 20... Rfe8 {[%clk
0:01:16]} 21. a4 {[%clk 0:02:06.7]} 21... Rad8 {[%clk 0:01:14.2]} 22. h4 {[%clk
0:02:02.6]} 22... h6 {[%clk 0:01:04.8]} 23. a5 {[%clk 0:01:52.3]} 23... Rxe1+
{[%clk 0:00:42.2]} 24. Rxe1 {[%clk 0:01:53.2]} 24... b5 {[%clk 0:00:42.6]} 25.
Qe2 {[%clk 0:01:38.5]} 25... Qd7 {[%clk 0:00:20]} 26. Qe7 {[%clk 0:01:32.8]}
26... c4 {[%clk 0:00:16.6]} 27. Bh3 {[%clk 0:01:13.6]} 27... Qxe7 {[%clk
0:00:16.2]} 28. Rxe7 {[%clk 0:01:14.5]} 28... Bxd5 {[%clk 0:00:16.8]} 29. Rxa7
{[%clk 0:01:09.1]} 29... Be6 {[%clk 0:00:14.4]} 30. Bg2 {[%clk 0:01:04.5]} 30...
Nf5 {[%clk 0:00:14.1]} 31. Rb7 {[%clk 0:00:58.3]} 31... Bd5 {[%clk 0:00:13.8]}
32. Bxd5 {[%clk 0:00:56.7]} 32... Rxd5 {[%clk 0:00:14.2]} 33. a6 {[%clk
0:00:57.6]} 33... Rd1+ {[%clk 0:00:13.8]} 34. Kg2 {[%clk 0:00:54.5]} 34... Ra1
{[%clk 0:00:13.5]} 35. a7 {[%clk 0:00:40.2]} 35... Kh7 {[%clk 0:00:13.5]} 36.
Rxf7 {[%clk 0:00:36.4]} 36... Nd4 {[%clk 0:00:12.4]} 37. Be3 {[%clk 0:00:35.7]}
37... Nc6 {[%clk 0:00:12.4]} 38. Rc7 {[%clk 0:00:34.3]} 38... Ne5 {[%clk
0:00:05]} 39. Rc8 {[%clk 0:00:32.7]} 39... b4 {[%clk 0:00:03.3]} 40. a8=Q {[%clk
0:00:32.5]} 1-0